[Event "8th Menchik Memorial 2024"]
[Site "London"]
[Date "2024.03.23"]
[Round "4.1"]
[White "Arakhamia-Grant, Ketevan"]
[Black "Steil-Antoni, Fiona"]
[Result "1-0"]
[ECO "C02"]
[WhiteElo "2290"]
[BlackElo "2154"]
[Annotator "RC"]
[PlyCount "105"]
[EventDate "2024.03.22"]
[EventType "tourn"]
[EventCountry "ENG"]
[SourceTitle "playchess.com"]
[Source "ChessBase"]
[SourceQuality "1"]
[TimeControl "5400+30"]

1. e4 {[%emt 0:04:05]} e6 {[%emt 0:00:05]} 2. d4 {[%emt 0:00:17]} d5 {[%emt 0:00:13]} 3. e5 {[%emt 0:00:26]} c5 {[%emt 0:00:24]} 4. c3 {[%emt 0:00:06]} Nc6 {[%emt 0:00:22]} 5. Nf3 {[%emt 0:00:37]} Bd7 {[%emt 0:00:31]} 6. Bd3 {[%emt 0:01:59]} cxd4 {[%emt 0:00:57]} 7. O-O {[%emt 0:05:54]} dxc3 {[%emt 0:01:25]} 8. Nxc3 {[%emt 0:00:06]} a6 {[%emt 0:11:03]} 9. h4 {[%emt 0:01:48]} b5 {[%emt 0:16:33]} 10. Re1 {[%emt 0:01:41]} h6 {[%emt 0:05:11]} 11. Be3 {[%emt 0:08:23]} Qc7 {[%emt 0:04:23]} 12. Rc1 {[%emt 0:01:12]} Qa5 {[%emt 0:09:11]} 13. a3 {[%emt 0:09:16]} Nge7 {[%emt 0:04:34]} 14. Ne2 {[%emt 0:13:37]} g6 {[%emt 0:08:00]} 15. Ned4 {[%emt 0:11:10]} Bg7 {[%emt 0:01:54]} 16. Nxc6 {[%emt 0:07:11]} Nxc6 {[%emt 0:02:13]} 17. Bc5 {[%emt 0:00:48]} Bf8 {[%emt 0:02:39]} 18. h5 {[%emt 0:02:12]} Bxc5 {[%emt 0:01:52]} 19. Rxc5 {[%emt 0:00:11]} gxh5 {[%emt 0:02:37]} 20. Qc1 {[%emt 0:02:43]} Rc8 {[%emt 0:03:01]} 21. Qf4 {[%emt 0:08:41]} Qd8 {[%emt 0:05:34]} 22. g3 {[%emt 0:04:54]} Qe7 {[%emt 0:10:48]} 23. b4 {[%emt 0:01:51]} Na7 {[%emt 0:01:33]} 24. Rec1 {[%emt 0:00:55]} Rxc5 {[%emt 0:00:37]} 25. Rxc5 {[%emt 0:00:26]} Nc8 {[%emt 0:04:03]} 26. Rc7 {[%emt 0:01:14]} Kd8 {[%emt 0:02:37]} 27. Rb7 {[%emt 0:00:45]} Ke8 {[%emt 0:00:43]} 28. Kh2 {[%emt 0:04:10]} Qf8 {[%emt 0:00:22]} 29. Qh4 {[%emt 0:01:43]} Qg7 {[%emt 0:00:41]} 30. Qxh5 {[%emt 0:00:29]} Kd8 {[%emt 0:00:52]} 31. Qh4+ {[%emt 0:01:39]} Ne7 {[%emt 0:00:30]} 32. Rb8+ {[%emt 0:00:59]} Bc8 {[%emt 0:00:03]} 33. Rxc8+ {[%emt 0:00:40]} Kxc8 {[%emt 0:00:01]} 34. Qxe7 {[%emt 0:00:07]} h5 {[%emt 0:01:58]} 35. Qa7 {[%emt 0:01:16]} h4 {[%emt 0:00:00]} 36. Qxa6+ {[%emt 0:00:40]} Kc7 {[%emt 0:00:01]} 37. Qd6+ {[%emt 0:01:11]} Kb7 {[%emt 0:00:20]} 38. Qd7+ {[%emt 0:00:46]} Ka8 {[%emt 0:00:16]} 39. Qc6+ {[%emt 0:00:55]} Ka7 {[%emt 0:00:04]} 40. Qc7+ {[%emt 0:00:46]} Ka8 {[%emt 0:00:16]} 41. Bxb5 {[%emt 0:01:54]} hxg3+ {[%emt 0:00:21]} 42. Kg2 {[%emt 0:00:04]} Rh2+ {[%emt 0:01:11]} 43. Nxh2 {[%emt 0:00:25]} gxh2+ {[%emt 0:00:14]} 44. Kxh2 {[%emt 0:00:04]} Qh7+ {[%emt 0:01:38]} 45. Kg1 {[%emt 0:00:14]} Qb1+ {[%emt 0:00:36]} 46. Bf1 {[%emt 0:01:34]} Qg6+ {[%emt 0:00:04]} 47. Bg2 {[%emt 0:00:30]} Qb1+ {[%emt 0:00:14]} 48. Kh2 {[%emt 0:00:15]} Qf5 {[%emt 0:01:06]} 49. Qd8+ {[%emt 0:01:02]} Ka7 {[%emt 0:00:16]} 50. Qf6 {[%emt 0:00:38]} Qh5+ {[%emt 0:00:23]} 51. Kg3 {[%emt 0:00:19]} Kb6 {[%emt 0:00:56]} 52. a4 {[%emt 0:00:33]} Qe2 {[%emt 0:00:03]} 53. Bxd5 {[%emt 0:01:03]} 1-0

[Event "8th Menchik Memorial 2024"]
[Site "London"]
[Date "2024.03.23"]
[Round "4.2"]
[White "Hryshchenko, Kamila"]
[Black "Navrotescu, Andreea"]
[Result "0-1"]
[ECO "A07"]
[WhiteElo "2186"]
[BlackElo "2200"]
[Annotator "RC"]
[PlyCount "82"]
[EventDate "2024.03.22"]
[EventType "tourn"]
[EventCountry "ENG"]
[SourceTitle "playchess.com"]
[Source "ChessBase"]
[SourceQuality "1"]
[TimeControl "5400+30"]

1. Nf3 {[%emt 0:00:20]} d5 {[%emt 0:00:18]} 2. g3 {[%emt 0:00:34]} g6 {[%emt 0:00:16]} 3. Bg2 {[%emt 0:00:04]} Bg7 {[%emt 0:00:05]} 4. d3 {[%emt 0:00:14]} e5 {[%emt 0:00:17]} 5. Nc3 {[%emt 0:02:23]} Nc6 {[%emt 0:05:42]} 6. e4 {[%emt 0:01:49]} dxe4 {[%emt 0:02:05]} 7. Nxe4 {[%emt 0:00:45]} h6 {[%emt 0:01:34]} 8. O-O {[%emt 0:03:47]} Nge7 {[%emt 0:01:19]} 9. a4 {[%emt 0:05:34]} f5 {[%emt 0:04:27]} 10. Nc3 {[%emt 0:08:51]} Be6 {[%emt 0:02:58]} 11. Re1 {[%emt 0:00:34]} Bf7 {[%emt 0:01:29]} 12. a5 {[%emt 0:09:26]} O-O {[%emt 0:05:29]} 13. a6 {[%emt 0:01:52]} b6 {[%emt 0:00:52]} 14. Bd2 {[%emt 0:00:26]} Qd7 {[%emt 0:03:36]} 15. b4 {[%emt 0:05:33]} b5 {[%emt 0:15:22]} 16. Rb1 {[%emt 0:09:34]} Rad8 {[%emt 0:14:42]} 17. h3 {[%emt 0:12:48]} Rb8 {[%emt 0:13:19]} 18. Be3 {[%emt 0:00:27]} Nd4 {[%emt 0:01:40]} 19. Ne2 {[%emt 0:04:18]} Nd5 {[%emt 0:02:02]} 20. Bd2 {[%emt 0:02:54]} Rfe8 {[%emt 0:01:14]} 21. c3 {[%emt 0:06:13]} Nxe2+ {[%emt 0:04:36]} 22. Qxe2 {[%emt 0:05:57]} Rbd8 {[%emt 0:01:45]} 23. Red1 {[%emt 0:03:10]} Qc8 {[%emt 0:09:28]} 24. Ra1 {[%emt 0:03:18]} c6 {[%emt 0:03:15]} 25. Ra3 {[%emt 0:01:22]} e4 {[%emt 0:02:26]} 26. Nd4 {[%emt 0:05:02]} Nxb4 {[%emt 0:01:11]} 27. dxe4 {[%emt 0:00:10]} Bc4 {[%emt 0:01:04]} 28. Qe3 {[%emt 0:03:20]} Nd5 {[%emt 0:00:02]} 29. Qe1 {[%emt 0:03:39]} b4 {[%emt 0:00:38]} 30. Ra5 {[%emt 0:00:32]} c5 {[%emt 0:00:51]} 31. Ne2 {[%emt 0:00:30]} fxe4 {[%emt 0:00:36]} 32. cxb4 {[%emt 0:00:29]} Nxb4 {[%emt 0:00:28]} 33. Be3 {[%emt 0:00:30]} Nd3 {[%emt 0:00:16]} 34. Qf1 {[%emt 0:00:21]} Bxa6 {[%emt 0:00:49]} 35. Nf4 {[%emt 0:00:39]} Nxf4 {[%emt 0:00:52]} 36. Rxd8 {[%emt 0:00:06]} Bxf1 {[%emt 0:00:42]} 37. Rxc8 {[%emt 0:00:04]} Rxc8 {[%emt 0:00:02]} 38. Bxe4 {[%emt 0:00:30]} Bd3 {[%emt 0:00:23]} 39. gxf4 {[%emt 0:00:33]} Bxe4 {[%emt 0:00:01]} 40. Bxc5 {[%emt 0:00:30]} Bc3 {[%emt 0:00:13]} 41. Ra4 {[%emt 0:00:04]} Rxc5 {[%emt 0:00:18]} 0-1

[Event "8th Menchik Memorial 2024"]
[Site "London"]
[Date "2024.03.23"]
[Round "4.3"]
[White "Smith, Olivia"]
[Black "Garcia Martin, Marta"]
[Result "0-1"]
[ECO "B30"]
[WhiteElo "2054"]
[BlackElo "2356"]
[Annotator "RC"]
[PlyCount "64"]
[EventDate "2024.03.22"]
[EventType "tourn"]
[EventCountry "ENG"]
[SourceTitle "playchess.com"]
[Source "ChessBase"]
[SourceQuality "1"]
[TimeControl "5400+30"]

1. e4 {[%emt 0:00:02]} c5 {[%emt 0:00:16]} 2. Nc3 {[%emt 0:00:10]} Nc6 {[%emt 0:00:31]} 3. Bb5 {[%emt 0:00:19]} Nd4 {[%emt 0:02:32]} 4. Nf3 {[%emt 0:00:19]} e6 {[%emt 0:05:53]} 5. O-O {[%emt 0:03:19]} a6 {[%emt 0:00:35]} 6. Bd3 {[%emt 0:00:35]} Nc6 {[%emt 0:00:54]} 7. Re1 {[%emt 0:02:26]} g5 {[%emt 0:04:23]} 8. h3 {[%emt 0:04:21]} h5 {[%emt 0:06:53]} 9. Nh2 {[%emt 0:10:30]} Bg7 {[%emt 0:19:53]} 10. Bf1 {[%emt 0:04:47]} Ne5 {[%emt 0:09:10]} 11. d4 {[%emt 0:03:39]} cxd4 {[%emt 0:00:24]} 12. Ne2 {[%emt 0:00:53]} g4 {[%emt 0:04:35]} 13. Nxd4 {[%emt 0:01:26]} gxh3 {[%emt 0:01:19]} 14. gxh3 {[%emt 0:00:19]} Ne7 {[%emt 0:01:42]} 15. Bg2 {[%emt 0:02:07]} d6 {[%emt 0:03:11]} 16. c3 {[%emt 0:04:08]} Bd7 {[%emt 0:02:38]} 17. a4 {[%emt 0:09:34]} Qc7 {[%emt 0:01:17]} 18. Nhf3 {[%emt 0:06:33]} O-O-O {[%emt 0:09:12]} 19. a5 {[%emt 0:07:36]} Rdg8 {[%emt 0:08:32]} 20. Nxe5 {[%emt 0:11:40]} dxe5 {[%emt 0:00:30]} 21. Nf3 {[%emt 0:00:54]} Bh6 {[%emt 0:00:25]} 22. Be3 {[%emt 0:01:44]} Bxe3 {[%emt 0:01:13]} 23. fxe3 {[%emt 0:00:19]} Bc6 {[%emt 0:00:53]} 24. Qc2 {[%emt 0:05:01]} Nf5 {[%emt 0:08:33]} 25. Kh2 {[%emt 0:01:33]} Ng3 {[%emt 0:00:08]} 26. Nd2 {[%emt 0:03:19]} f5 {[%emt 0:02:01]} 27. Qb3 {[%emt 0:01:59]} Rh6 {[%emt 0:00:55]} 28. Bh1 {[%emt 0:05:50]} Rhg6 {[%emt 0:01:28]} 29. Rg1 {[%emt 0:02:23]} Kb8 {[%emt 0:02:10]} 30. Rae1 {[%emt 0:04:22]} Qg7 {[%emt 0:02:37]} 31. Qd1 {[%emt 0:00:25]} Nxh1 {[%emt 0:00:38]} 32. Kxh1 {[%emt 0:00:22]} Rg3 {[%emt 0:00:10]} 0-1

[Event "8th Menchik Memorial 2024"]
[Site "London"]
[Date "2024.03.23"]
[Round "4.4"]
[White "Sivanandan, Bodhana"]
[Black "Cosman, Andreea-Marioara"]
[Result "0-1"]
[ECO "B23"]
[WhiteElo "2088"]
[BlackElo "2115"]
[Annotator "RC"]
[PlyCount "122"]
[EventDate "2024.03.22"]
[EventType "tourn"]
[EventCountry "ENG"]
[SourceTitle "playchess.com"]
[Source "ChessBase"]
[SourceQuality "1"]
[TimeControl "5400+30"]

1. e4 {[%emt 0:02:54]} c5 {[%emt 0:00:06]} 2. Nc3 {[%emt 0:02:04]} d6 {[%emt 0:00:08]} 3. f4 {[%emt 0:00:34]} g6 {[%emt 0:00:07]} 4. Nf3 {[%emt 0:00:45]} Bg7 {[%emt 0:00:08]} 5. Bb5+ {[%emt 0:01:08]} Bd7 {[%emt 0:00:08]} 6. a4 {[%emt 0:00:43]} Nc6 {[%emt 0:00:07]} 7. d3 {[%emt 0:00:21]} a6 {[%emt 0:01:54]} 8. Bxc6 {[%emt 0:01:01]} Bxc6 {[%emt 0:00:08]} 9. a5 {[%emt 0:01:23]} e6 {[%emt 0:06:39]} 10. O-O {[%emt 0:02:26]} Ne7 {[%emt 0:00:12]} 11. Qe1 {[%emt 0:03:10]} Bd7 {[%emt 0:09:55]} 12. Bd2 {[%emt 0:14:17]} O-O {[%emt 0:06:33]} 13. f5 {[%emt 0:08:13]} exf5 {[%emt 0:11:08]} 14. Qh4 {[%emt 0:03:03]} Nc6 {[%emt 0:04:34]} 15. Bg5 {[%emt 0:02:38]} f6 {[%emt 0:00:36]} 16. Bd2 {[%emt 0:04:43]} Ne5 {[%emt 0:09:11]} 17. Nd5 {[%emt 0:11:57]} Be6 {[%emt 0:04:49]} 18. Nb6 {[%emt 0:03:57]} Rb8 {[%emt 0:00:26]} 19. exf5 {[%emt 0:02:42]} gxf5 {[%emt 0:13:35]} 20. Bh6 {[%emt 0:04:50]} Qe7 {[%emt 0:03:42]} 21. Rae1 {[%emt 0:05:57]} Rbe8 {[%emt 0:00:29]} 22. d4 {[%emt 0:01:29]} Ng6 {[%emt 0:04:29]} 23. Qh5 {[%emt 0:01:32]} Bxh6 {[%emt 0:04:04]} 24. Qxh6 {[%emt 0:00:16]} Qg7 {[%emt 0:01:47]} 25. Qxg7+ {[%emt 0:06:12]} Kxg7 {[%emt 0:00:07]} 26. Rf2 {[%emt 0:01:35]} Bf7 {[%emt 0:03:46]} 27. Rfe2 {[%emt 0:00:55]} Rxe2 {[%emt 0:04:58]} 28. Rxe2 {[%emt 0:00:14]} Rd8 {[%emt 0:01:27]} 29. Kf2 {[%emt 0:02:06]} Kf8 {[%emt 0:00:35]} 30. g3 {[%emt 0:04:25]} f4 {[%emt 0:00:43]} 31. g4 {[%emt 0:00:12]} cxd4 {[%emt 0:00:14]} 32. Nxd4 {[%emt 0:00:36]} Ne5 {[%emt 0:00:06]} 33. h3 {[%emt 0:00:28]} d5 {[%emt 0:04:37]} 34. c3 {[%emt 0:03:44]} Re8 {[%emt 0:01:57]} 35. Rd2 {[%emt 0:00:40]} Bg6 {[%emt 0:02:21]} 36. Nf5 {[%emt 0:01:28]} h5 {[%emt 0:00:26]} 37. Nd6 {[%emt 0:02:58]} Re6 {[%emt 0:00:34]} 38. gxh5 {[%emt 0:00:27]} Nd3+ {[%emt 0:00:56]} 39. Kg1 {[%emt 0:01:07]} Re1+ {[%emt 0:00:32]} 40. Kg2 {[%emt 0:00:25]} Be4+ {[%emt 0:00:18]} 41. Nxe4 {[%emt 0:00:12]} dxe4 {[%emt 0:00:05]} 42. Nd5 {[%emt 0:00:30]} f3+ {[%emt 0:00:25]} 43. Kg3 {[%emt 0:00:11]} Re2 {[%emt 0:01:53]} 44. Rd1 {[%emt 0:01:06]} f2 {[%emt 0:00:29]} 45. Rf1 {[%emt 0:00:33]} Re1 {[%emt 0:00:35]} 46. Kg2 {[%emt 0:00:32]} e3 {[%emt 0:00:25]} 47. Nb6 {[%emt 0:00:41]} Nf4+ {[%emt 0:00:13]} 48. Kf3 {[%emt 0:00:09]} Rxf1 {[%emt 0:00:07]} 49. Kxf4 {[%emt 0:00:06]} e2 {[%emt 0:00:08]} 50. Nd7+ {[%emt 0:00:16]} Kg7 {[%emt 0:00:15]} 51. h6+ {[%emt 0:00:09]} Kxh6 {[%emt 0:00:08]} 52. Nxf6 {[%emt 0:00:07]} e1=Q {[%emt 0:00:09]} 53. Ng4+ {[%emt 0:00:16]} Kg7 {[%emt 0:00:07]} 54. h4 {[%emt 0:00:09]} Rg1 {[%emt 0:00:19]} 55. Nxf2 {[%emt 0:00:11]} Qxf2+ {[%emt 0:00:05]} 56. Ke4 {[%emt 0:00:16]} Qe2+ {[%emt 0:00:24]} 57. Kd4 {[%emt 0:00:08]} Rg4+ {[%emt 0:00:11]} 58. Kc5 {[%emt 0:00:14]} Qb5+ {[%emt 0:00:14]} 59. Kd6 {[%emt 0:00:06]} Qc6+ {[%emt 0:00:16]} 60. Ke5 {[%emt 0:00:14]} Kf7 {[%emt 0:00:32]} 61. h5 {[%emt 0:00:08]} Qe6# {[%emt 0:00:42]} 0-1

[Event "8th Menchik Memorial 2024"]
[Site "London"]
[Date "2024.03.23"]
[Round "4.5"]
[White "Subramanian, Anusha"]
[Black "Hunt, Harriet V"]
[Result "0-1"]
[ECO "A45"]
[WhiteElo "1997"]
[BlackElo "2307"]
[Annotator "RC"]
[PlyCount "80"]
[EventDate "2024.03.22"]
[EventType "tourn"]
[EventCountry "ENG"]
[SourceTitle "playchess.com"]
[Source "ChessBase"]
[SourceQuality "1"]
[TimeControl "5400+30"]

1. d4 {[%emt 0:00:03]} Nf6 {[%emt 0:00:16]} 2. Bg5 {[%emt 0:00:07]} e6 {[%emt 0:00:38]} 3. e4 {[%emt 0:00:08]} h6 {[%emt 0:00:16]} 4. Bxf6 {[%emt 0:00:06]} Qxf6 {[%emt 0:00:06]} 5. c3 {[%emt 0:00:04]} d6 {[%emt 0:01:21]} 6. Bd3 {[%emt 0:00:37]} Nd7 {[%emt 0:10:07]} 7. Ne2 {[%emt 0:01:58]} g6 {[%emt 0:04:26]} 8. O-O {[%emt 0:01:08]} Bg7 {[%emt 0:00:35]} 9. Nd2 {[%emt 0:01:24]} Qe7 {[%emt 0:04:35]} 10. f4 {[%emt 0:02:33]} e5 {[%emt 0:05:26]} 11. Nf3 {[%emt 0:02:18]} O-O {[%emt 0:02:59]} 12. Qd2 {[%emt 0:02:56]} c5 {[%emt 0:04:58]} 13. Rac1 {[%emt 0:07:23]} a6 {[%emt 0:03:20]} 14. b4 {[%emt 0:02:17]} b6 {[%emt 0:02:56]} 15. bxc5 {[%emt 0:09:50]} bxc5 {[%emt 0:00:11]} 16. Rb1 {[%emt 0:00:48]} Ra7 {[%emt 0:03:56]} 17. Qe3 {[%emt 0:07:01]} Rc7 {[%emt 0:02:01]} 18. Rfc1 {[%emt 0:03:05]} exd4 {[%emt 0:06:29]} 19. cxd4 {[%emt 0:01:00]} cxd4 {[%emt 0:01:51]} 20. Nexd4 {[%emt 0:00:46]} Rxc1+ {[%emt 0:02:01]} 21. Rxc1 {[%emt 0:00:32]} Nc5 {[%emt 0:00:21]} 22. Nb3 {[%emt 0:03:17]} Nxd3 {[%emt 0:01:50]} 23. Qxd3 {[%emt 0:00:08]} Bb7 {[%emt 0:01:11]} 24. Nfd2 {[%emt 0:04:50]} Re8 {[%emt 0:03:05]} 25. Re1 {[%emt 0:03:10]} Qc7 {[%emt 0:02:44]} 26. Kh1 {[%emt 0:06:59]} Kh7 {[%emt 0:03:24]} 27. Rc1 {[%emt 0:05:09]} Qe7 {[%emt 0:01:15]} 28. Re1 {[%emt 0:02:45]} f5 {[%emt 0:02:35]} 29. e5 {[%emt 0:03:44]} Qh4 {[%emt 0:02:27]} 30. Rf1 {[%emt 0:08:19]} dxe5 {[%emt 0:00:48]} 31. Nc5 {[%emt 0:02:58]} Ba8 {[%emt 0:05:29]} 32. Nxa6 {[%emt 0:05:17]} exf4 {[%emt 0:02:33]} 33. Nf3 {[%emt 0:04:55]} Qe7 {[%emt 0:02:37]} 34. a3 {[%emt 0:02:04]} Rd8 {[%emt 0:01:43]} 35. Qc4 {[%emt 0:05:30]} Qxa3 {[%emt 0:01:26]} 36. Nc7 {[%emt 0:01:03]} Rc8 {[%emt 0:02:05]} 37. Qxf4 {[%emt 0:01:04]} Bxf3 {[%emt 0:03:46]} 38. gxf3 {[%emt 0:01:40]} Qd3 {[%emt 0:01:06]} 39. Rc1 {[%emt 0:00:29]} g5 {[%emt 0:01:05]} 40. Qg3 {[%emt 0:00:28]} Qd7 {[%emt 0:01:01]} 0-1

[Event "8th Menchik Memorial 2024"]
[Site "London"]
[Date "2024.03.24"]
[Round "5.2"]
[White "Cosman, Andreea-Marioara"]
[Black "Subramanian, Anusha"]
[Result "1/2-1/2"]
[ECO "A50"]
[WhiteElo "2115"]
[BlackElo "1997"]
[Annotator "RC"]
[PlyCount "29"]
[EventDate "2024.03.22"]
[EventType "tourn"]
[EventCountry "ENG"]
[SourceTitle "playchess.com"]
[Source "ChessBase"]
[SourceQuality "1"]
[TimeControl "5400+30"]

1. d4 {[%emt 0:00:03]} Nf6 {[%emt 0:00:05]} 2. c4 {[%emt 0:00:08]} e6 {[%emt 0:00:06]} 3. Bf4 {[%emt 0:00:06]} Bb4+ {[%emt 0:00:48]} 4. Nd2 {[%emt 0:00:06]} O-O {[%emt 0:01:25]} 5. a3 {[%emt 0:00:17]} Bxd2+ {[%emt 0:00:48]} 6. Qxd2 {[%emt 0:00:07]} d5 {[%emt 0:01:26]} 7. e3 {[%emt 0:00:35]} b6 {[%emt 0:01:09]} 8. Rc1 {[%emt 0:04:36]} c5 {[%emt 0:09:12]} 9. Nf3 {[%emt 0:04:27]} Bb7 {[%emt 0:02:54]} 10. cxd5 {[%emt 0:01:23]} exd5 {[%emt 0:03:13]} 11. Bd3 {[%emt 0:03:47]} c4 {[%emt 0:02:26]} 12. Bb1 {[%emt 0:10:20]} Nc6 {[%emt 0:10:09]} 13. Bg5 {[%emt 0:00:37]} Qd6 {[%emt 0:01:28]} 14. O-O {[%emt 0:06:26]} Rfe8 {[%emt 0:02:54]} 15. Qc2 {[%emt 0:10:55]} 1/2-1/2

[Event "8th Menchik Memorial 2024"]
[Site "London"]
[Date "2024.03.24"]
[Round "5.3"]
[White "Garcia Martin, Marta"]
[Black "Sivanandan, Bodhana"]
[Result "1/2-1/2"]
[ECO "B12"]
[WhiteElo "2356"]
[BlackElo "2088"]
[Annotator "RC"]
[PlyCount "131"]
[EventDate "2024.03.22"]
[EventType "tourn"]
[EventCountry "ENG"]
[SourceTitle "playchess.com"]
[Source "ChessBase"]
[SourceQuality "1"]
[TimeControl "5400+30"]

1. e4 {[%emt 0:00:04]} c6 {[%emt 0:00:25]} 2. d4 {[%emt 0:00:31]} d5 {[%emt 0:00:42]} 3. f3 {[%emt 0:00:32]} dxe4 {[%emt 0:00:50]} 4. fxe4 {[%emt 0:00:06]} e5 {[%emt 0:00:57]} 5. Nf3 {[%emt 0:00:10]} Bg4 {[%emt 0:00:47]} 6. c3 {[%emt 0:01:17]} Nd7 {[%emt 0:02:50]} 7. Be2 {[%emt 0:00:50]} Bd6 {[%emt 0:03:11]} 8. Nbd2 {[%emt 0:00:50]} Ne7 {[%emt 0:04:41]} 9. Nc4 {[%emt 0:02:47]} Bc7 {[%emt 0:02:20]} 10. Qb3 {[%emt 0:42:06]} b5 {[%emt 0:08:25]} 11. Ncxe5 {[%emt 0:05:09]} Nxe5 {[%emt 0:19:41]} 12. Nxe5 {[%emt 0:00:34]} Be6 {[%emt 0:00:45]} 13. Qc2 {[%emt 0:06:50]} Bxe5 {[%emt 0:01:00]} 14. dxe5 {[%emt 0:00:03]} O-O {[%emt 0:05:50]} 15. Be3 {[%emt 0:02:05]} Ng6 {[%emt 0:01:22]} 16. O-O {[%emt 0:00:19]} Re8 {[%emt 0:04:06]} 17. b3 {[%emt 0:05:44]} Qc7 {[%emt 0:05:11]} 18. a4 {[%emt 0:02:37]} a6 {[%emt 0:00:51]} 19. Ra3 {[%emt 0:02:10]} Qxe5 {[%emt 0:02:40]} 20. Bd4 {[%emt 0:02:09]} Qg5 {[%emt 0:04:46]} 21. Qc1 {[%emt 0:01:56]} Qh4 {[%emt 0:05:29]} 22. Re1 {[%emt 0:04:41]} Nf4 {[%emt 0:07:43]} 23. Bf1 {[%emt 0:00:24]} Ng6 {[%emt 0:02:30]} 24. b4 {[%emt 0:11:48]} Bc4 {[%emt 0:03:30]} 25. Bxc4 {[%emt 0:02:55]} bxc4 {[%emt 0:00:10]} 26. Qe3 {[%emt 0:01:22]} Rad8 {[%emt 0:05:37]} 27. Ra2 {[%emt 0:03:05]} Re6 {[%emt 0:00:55]} 28. Rf2 {[%emt 0:00:46]} Rde8 {[%emt 0:01:29]} 29. Qf3 {[%emt 0:00:21]} Qe7 {[%emt 0:00:58]} 30. Rfe2 {[%emt 0:00:44]} h6 {[%emt 0:00:44]} 31. e5 {[%emt 0:00:32]} Qg5 {[%emt 0:01:09]} 32. g3 {[%emt 0:00:29]} Nxe5 {[%emt 0:01:39]} 33. Bxe5 {[%emt 0:00:07]} Rxe5 {[%emt 0:00:04]} 34. Rxe5 {[%emt 0:00:47]} Rxe5 {[%emt 0:00:08]} 35. Rf1 {[%emt 0:00:19]} Qe3+ {[%emt 0:00:09]} 36. Kg2 {[%emt 0:00:14]} Qxf3+ {[%emt 0:01:56]} 37. Rxf3 {[%emt 0:00:04]} Re2+ {[%emt 0:00:46]} 38. Kh3 {[%emt 0:01:05]} Rc2 {[%emt 0:00:16]} 39. Rf5 {[%emt 0:00:27]} Rxc3 {[%emt 0:00:24]} 40. Rc5 {[%emt 0:00:02]} Ra3 {[%emt 0:00:49]} 41. a5 {[%emt 0:00:50]} c3 {[%emt 0:00:12]} 42. Rxc6 {[%emt 0:00:04]} Rb3 {[%emt 0:00:19]} 43. Rxa6 {[%emt 0:00:30]} Rxb4 {[%emt 0:00:07]} 44. Rc6 {[%emt 0:00:07]} Ra4 {[%emt 0:00:07]} 45. a6 {[%emt 0:01:23]} c2 {[%emt 0:00:06]} 46. Rxc2 {[%emt 0:00:08]} Rxa6 {[%emt 0:00:04]} 47. Kg2 {[%emt 0:00:13]} g5 {[%emt 0:00:16]} 48. Kf3 {[%emt 0:01:15]} Kg7 {[%emt 0:00:09]} 49. h4 {[%emt 0:00:49]} f5 {[%emt 0:00:56]} 50. hxg5 {[%emt 0:00:31]} hxg5 {[%emt 0:00:07]} 51. g4 {[%emt 0:00:36]} Ra3+ {[%emt 0:00:34]} 52. Kf2 {[%emt 0:00:03]} f4 {[%emt 0:01:45]} 53. Rc5 {[%emt 0:00:34]} Kf6 {[%emt 0:00:14]} 54. Rc6+ {[%emt 0:00:43]} Ke5 {[%emt 0:00:14]} 55. Rc5+ {[%emt 0:00:10]} Kd4 {[%emt 0:00:48]} 56. Rxg5 {[%emt 0:00:13]} Ke4 {[%emt 0:00:09]} 57. Rg8 {[%emt 0:00:38]} Ra2+ {[%emt 0:00:04]} 58. Ke1 {[%emt 0:00:59]} f3 {[%emt 0:00:24]} 59. g5 {[%emt 0:00:35]} Ke3 {[%emt 0:00:22]} 60. Re8+ {[%emt 0:00:18]} Kf4 {[%emt 0:00:38]} 61. g6 {[%emt 0:00:38]} Ra1+ {[%emt 0:02:49]} 62. Kf2 {[%emt 0:00:17]} Ra2+ {[%emt 0:00:23]} 63. Kf1 {[%emt 0:00:40]} Ra1+ {[%emt 0:00:58]} 64. Kf2 {[%emt 0:00:06]} Ra2+ {[%emt 0:00:55]} 65. Kf1 {[%emt 0:00:04]} Ra1+ {[%emt 0:00:54]} 66. Kf2 {[%emt 0:00:06]} 1/2-1/2

[Event "8th Menchik Memorial 2024"]
[Site "London"]
[Date "2024.03.24"]
[Round "5.4"]
[White "Navrotescu, Andreea"]
[Black "Smith, Olivia"]
[Result "1-0"]
[ECO "E63"]
[WhiteElo "2200"]
[BlackElo "2054"]
[Annotator "RC"]
[PlyCount "81"]
[EventDate "2024.03.22"]
[EventType "tourn"]
[EventCountry "ENG"]
[SourceTitle "playchess.com"]
[Source "ChessBase"]
[SourceQuality "1"]
[TimeControl "5400+30"]

1. c4 {[%emt 0:00:03]} Nf6 {[%emt 0:00:07]} 2. Nc3 {[%emt 0:00:07]} g6 {[%emt 0:00:27]} 3. g3 {[%emt 0:00:34]} Bg7 {[%emt 0:00:09]} 4. Bg2 {[%emt 0:00:08]} O-O {[%emt 0:00:32]} 5. d4 {[%emt 0:00:30]} d6 {[%emt 0:00:31]} 6. Nf3 {[%emt 0:00:13]} Nc6 {[%emt 0:00:21]} 7. O-O {[%emt 0:00:35]} a6 {[%emt 0:01:25]} 8. d5 {[%emt 0:01:04]} Na5 {[%emt 0:00:27]} 9. b3 {[%emt 0:00:43]} c5 {[%emt 0:00:50]} 10. dxc6 {[%emt 0:00:10]} Nxc6 {[%emt 0:00:06]} 11. Bb2 {[%emt 0:00:12]} Qa5 {[%emt 0:01:28]} 12. Qc1 {[%emt 0:01:15]} h6 {[%emt 0:01:31]} 13. Rd1 {[%emt 0:01:00]} Be6 {[%emt 0:03:50]} 14. Ne1 {[%emt 0:14:12]} Rac8 {[%emt 0:03:10]} 15. Nd3 {[%emt 0:09:18]} b5 {[%emt 0:06:10]} 16. cxb5 {[%emt 0:04:36]} Nd4 {[%emt 0:08:20]} 17. b4 {[%emt 0:11:17]} Qb6 {[%emt 0:11:50]} 18. Qd2 {[%emt 0:00:47]} axb5 {[%emt 0:01:48]} 19. Nf4 {[%emt 0:01:55]} Nc6 {[%emt 0:27:45]} 20. Nxe6 {[%emt 0:00:57]} fxe6 {[%emt 0:00:11]} 21. Bh3 {[%emt 0:02:08]} Ne5 {[%emt 0:07:50]} 22. Bxe6+ {[%emt 0:00:52]} Kh7 {[%emt 0:00:21]} 23. Qd4 {[%emt 0:06:34]} Qb7 {[%emt 0:04:36]} 24. Rac1 {[%emt 0:05:05]} Rc4 {[%emt 0:02:55]} 25. Bxc4 {[%emt 0:03:37]} Nxc4 {[%emt 0:00:07]} 26. Ba1 {[%emt 0:01:17]} e5 {[%emt 0:03:17]} 27. Qh4 {[%emt 0:01:15]} d5 {[%emt 0:00:10]} 28. a4 {[%emt 0:04:53]} Qf7 {[%emt 0:09:35]} 29. Nxb5 {[%emt 0:09:22]} Ne4 {[%emt 0:01:26]} 30. Rf1 {[%emt 0:00:30]} Nxf2 {[%emt 0:01:24]} 31. g4 {[%emt 0:01:05]} Qf4 {[%emt 0:02:04]} 32. Qxf2 {[%emt 0:00:14]} Qxg4+ {[%emt 0:01:04]} 33. Qg3 {[%emt 0:01:48]} Qe4 {[%emt 0:00:37]} 34. Rxf8 {[%emt 0:00:29]} Bxf8 {[%emt 0:00:04]} 35. Qf3 {[%emt 0:00:20]} Qh4 {[%emt 0:00:30]} 36. Kh1 {[%emt 0:01:47]} Bg7 {[%emt 0:00:55]} 37. Qxd5 {[%emt 0:00:42]} Ne3 {[%emt 0:00:27]} 38. Qf3 {[%emt 0:01:01]} Ng4 {[%emt 0:00:20]} 39. Qg3 {[%emt 0:00:47]} Qg5 {[%emt 0:00:46]} 40. Rf1 {[%emt 0:00:37]} Qh5 {[%emt 0:00:29]} 41. a5 {[%emt 0:00:39]} 1-0